fUST/lending_fUST_20250328
["ID","MTS","AMOUNT","RATE_DAILY","PERIOD"]
[356777229,1743166055603,-500.0,0.00029098,2]
[356777230,1743166055627,-500.0,0.00029098,2]
[356777231,1743166055652,-500.0,0.00029098,2]
[356777232,1743166055677,-500.0,0.00029098,2]
[356777233,1743166055702,-500.0,0.00029098,2]
[356777234,1743166055733,-500.0,0.00029098,2]
[356777235,1743166055758,-500.0,0.00029098,2]
[356777236,1743166055783,-500.0,0.00029098,2]
[356777237,1743166055808,-500.0,0.00029098,2]
[356777238,1743166055834,-500.0,0.00029098,2]
[356777239,1743166055859,-500.0,0.00029098,2]
[356777240,1743166055884,-500.0,0.00029098,2]
[356777241,1743166055908,-500.0,0.00029098,2]
[356777242,1743166055931,-500.0,0.00029098,2]
[356777243,1743166055955,-500.0,0.00029098,2]
[356777244,1743166055978,-500.0,0.00029098,2]
[356777245,1743166056002,-500.0,0.00029098,2]
[356777246,1743166056027,-500.0,0.00029098,2]
[356777247,1743166056054,-500.0,0.00029098,2]
[356777248,1743166056078,-619.73896574,0.00029098,2]
[356777249,1743166056103,-500.0,0.00029098,2]
[356777250,1743166056128,-500.0,0.00029098,2]
[356777251,1743166056151,-500.0,0.00029099,2]
[356777252,1743166056172,-558.3904272,0.000291,4]
[356777253,1743166056193,-4196.26406444,0.00029102,2]
[356777254,1743166056216,-160.0,0.00029179,2]
[356777255,1743166056238,-160.0,0.00029203,2]
[356777256,1743166056259,-151.328,0.00029295,2]
[356777257,1743166056280,-542.0,0.00029295,2]
[356777258,1743166056302,-400.0,0.00029295,2]
[356777259,1743166056324,-2264.677,0.00029295,2]
[356777260,1743166056345,-1937.625,0.00029295,2]
[356777261,1743166056368,-6382.21883427,0.0002966,2]
[356777262,1743166056390,-151.0,0.00029662,2]
[356777263,1743166056412,-448.12470484,0.00029669,2]
[356777264,1743166056435,-17845.05794897,0.0002967,2]
[356777298,1743166232629,-188.5898015,0.0002806,120]
[356777299,1743166232639,-428.0601985,0.00028972,2]
[356777304,1743166238616,-492.79913586,0.00028972,2]
[356777305,1743166238626,-166.88888319,0.00028998,2]
[356777306,1743166238636,-895.396799,0.00029069,2]
[356777307,1743166238647,-196.79509621,0.0002907,2]
[356777308,1743166238660,-303.20490379,0.0002907,2]
[356777309,1743166238674,-500.0,0.0002907,2]
[356777310,1743166238694,-500.0,0.0002907,2]
[356777311,1743166238713,-313.68729339,0.00029071,2]
[356777312,1743166238729,-6886.11332238,0.00029071,2]
[356777546,1743166247401,-14569.22221049,0.00029071,2]
[356777548,1743166247415,-360.24999978,0.00029071,2]
[356777559,1743166247512,-25001.31159735,0.00029071,2]
[356777561,1743166247522,-8339.579623,0.00029072,2]
[356777563,1743166247534,-4525.14255784,0.00029072,2]
[356777572,1743166247619,-14952.06148017,0.00029072,2]
[356777575,1743166247631,-854.6,0.00029072,2]
[356779514,1743167355133,-150.0,0.0002,2]
[356779527,1743167432035,-2633.6435034,0.00025816,2]
[356779528,1743167432045,-2074.4495173,0.00025875,2]
[356779529,1743167432055,-716.299134,0.00026307,2]
[356779530,1743167432065,-389.72756073,0.0002675,2]
[356779531,1743167432074,-300.0,0.00026881,2]
[356779532,1743167432084,-1764.15367034,0.00026882,2]
[356779533,1743167432093,-1401.00011511,0.00026882,2]
[356779534,1743167432103,-673.5031909,0.000269,7]
[356779535,1743167432113,-196.70894327,0.0002697,2]
[356779536,1743167432122,-600.0,0.0002697,2]
[356779537,1743167432131,-6751.56132868,0.00026974,2]
[356779538,1743167432140,-8627.60294305,0.00026974,2]
[356779543,1743167437681,-241.55017782,0.00026973,2]
[356779544,1743167437692,-559.94820799,0.00026973,2]
[356779545,1743167437703,-559.94820799,0.00026973,2]
[356779546,1743167437714,-559.94820799,0.00026973,2]
[356779547,1743167437724,-559.94820799,0.00026973,2]
[356779548,1743167437734,-559.94820799,0.00026973,2]
[356779549,1743167437745,-559.94820799,0.00026973,2]
[356779550,1743167437755,-291.56021016,0.00026973,2]
[356779551,1743167437765,-559.94820799,0.00026973,2]
[356779552,1743167437776,-559.94820799,0.00026973,2]
[356779553,1743167437786,-559.94820799,0.00026973,2]
[356779554,1743167437796,-559.94820799,0.00026973,2]
[356779555,1743167437807,-559.94820799,0.00026973,2]
[356779556,1743167437818,-559.94820799,0.00026973,2]
[356779557,1743167437828,-559.94820799,0.00026973,2]
[356779558,1743167437839,-559.94820799,0.00026973,2]
[356779559,1743167437849,-149.10189521,0.00026973,2]
[356779565,1743167439940,-410.84631278,0.00026973,2]
[356779566,1743167439950,-500.0,0.00026973,2]
[356779567,1743167439960,-559.94820799,0.00026973,2]
[356779568,1743167439970,-559.94820799,0.00026973,2]
[356779569,1743167439979,-187.40754943,0.00026973,2]
[356779570,1743167440005,-372.54065856,0.00026973,2]
[356779571,1743167440015,-559.94820799,0.00026973,2]
[356779572,1743167440025,-112.94051698,0.00026973,2]
[356779586,1743167442823,-447.00769101,0.00026973,2]
[356779587,1743167442834,-559.94820799,0.00026973,2]
[356779588,1743167442844,-559.94820799,0.00026973,2]
[356779589,1743167442854,-559.94820799,0.00026973,2]
[356779590,1743167442864,-559.94820799,0.00026973,2]
[356779591,1743167442874,-559.94820799,0.00026973,2]
[356779592,1743167442884,-559.94820799,0.00026973,2]
[356779593,1743167442894,-559.94820799,0.00026973,2]
[356779594,1743167442905,-559.94820799,0.00026973,2]
[356779595,1743167442914,-559.94820799,0.00026973,2]
[356779597,1743167442923,-559.94820799,0.00026973,2]
[356779599,1743167442932,-559.94820799,0.00026973,2]
[356779601,1743167442942,-559.94820799,0.00026973,2]
[356779603,1743167442952,-559.94820799,0.00026973,2]
[356779605,1743167442963,-559.94820799,0.00026973,2]
[356779607,1743167442973,-559.94820799,0.00026973,2]
[356779609,1743167442983,-559.94820799,0.00026973,2]
[356779611,1743167442992,-559.94820799,0.00026973,2]
[356779613,1743167443001,-559.94820799,0.00026973,2]
[356779615,1743167443011,-559.94820799,0.00026973,2]
[356779616,1743167443020,-559.94820799,0.00026973,2]
[356779617,1743167443029,-559.94820799,0.00026973,2]
[356779618,1743167443038,-559.94820799,0.00026973,2]
[356779619,1743167443048,-559.94820799,0.00026973,2]
[356779620,1743167443057,-559.94820799,0.00026973,2]
[356779621,1743167443067,-559.94820799,0.00026973,2]
[356779622,1743167443076,-559.94820799,0.00026973,2]
[356779623,1743167443086,-559.94820799,0.00026973,2]
[356779624,1743167443095,-559.94820799,0.00026973,2]
[356779625,1743167443104,-559.94820799,0.00026973,2]
[356779626,1743167443115,-559.94820799,0.00026973,2]
[356779627,1743167443124,-41372.39705695,0.00026974,2]
[356779628,1743167443134,-335.71608655,0.00026981,2]
[356779629,1743167443144,-10442.12049101,0.00026982,3]
[356779630,1743167443153,-3526.82620699,0.00026982,3]
[356779631,1743167443163,-835.12233967,0.00026982,3]
[356779632,1743167443172,-151.0,0.00026984,2]
[356779633,1743167443181,-258.837977,0.00026984,2]
[356779634,1743167443191,-159.25,0.00026986,2]
[356779635,1743167443200,-406.22183406,0.00027,2]
[356779636,1743167443210,-276.13402578,0.00027,2]
[356779637,1743167443220,-502.84630205,0.00027,2]
[356779638,1743167443230,-500.0,0.00027,2]
[356779639,1743167443240,-500.0,0.00027,2]
[356779640,1743167443251,-504.00739554,0.00027,2]
[356779641,1743167443262,-506.339849,0.00027,2]
[356779642,1743167443272,-501.65096437,0.00027,2]
[356779643,1743167443281,-500.0,0.00027,2]
[356779644,1743167443291,-500.0,0.00027,2]
[356779645,1743167443300,-164.69901844,0.00027,2]
[356779646,1743167443309,-500.0,0.00027,2]
[356779647,1743167443320,-500.0,0.00027,2]
[356779648,1743167443329,-500.0,0.00027,2]
[356779649,1743167443339,-500.0,0.00027,2]
[356779650,1743167443349,-504.24003157,0.00027,2]
[356779651,1743167443359,-500.0,0.00027,2]
[356779652,1743167443368,-654.26527289,0.00027025,2]
[356779653,1743167443378,-193.25285177,0.000271,2]
[356779654,1743167443388,-193.25285175,0.000271,2]
[356779655,1743167443397,-193.25285175,0.000271,2]
[356779656,1743167443407,-673.50319071,0.00027141,7]
[356779657,1743167443417,-673.50319071,0.00027383,7]
[356779658,1743167443428,-1401.00011507,0.00027533,2]
[356779659,1743167443438,-673.50319071,0.00027624,7]
[356779660,1743167443447,-1764.15367028,0.00027646,2]
[356779661,1743167443457,-673.50319071,0.00027866,7]
[356779662,1743167443466,-673.50319071,0.00028107,7]
[356779664,1743167443476,-1401.00011507,0.00028184,2]
[356779665,1743167443488,-400.0,0.00028287,2]
[356779666,1743167443500,-673.50319071,0.00028348,7]
[356779667,1743167443509,-1764.15367028,0.00028409,2]
[356779668,1743167443519,-673.50319071,0.0002859,8]
[356779669,1743167443530,-673.50319071,0.00028831,8]
[356779670,1743167443540,-1401.00011507,0.00028834,2]
[356779671,1743167443549,-208.1506618,0.00029041,30]
[356779672,1743167443559,-420.0,0.00029065,2]
[356779673,1743167443569,-673.50319071,0.00029072,8]
[356779674,1743167443579,-794.693957,0.000291,4]
[356779675,1743167443588,-1764.15367028,0.00029173,2]
[356779676,1743167443598,-457.29230771,0.00029214,2]
[356779677,1743167443608,-381.55056752,0.00029237,2]
[356779678,1743167443618,-150.62507227,0.00029312,2]
[356779679,1743167443627,-673.50319071,0.00029314,8]
[356779680,1743167443637,-154.903142,0.00029472,2]
[356779681,1743167443647,-1401.00011507,0.00029485,2]
[356779682,1743167443656,-6751.56132868,0.00029547,2]
[356779683,1743167443666,-47260.9293008,0.00029547,2]
[356779684,1743167443675,-673.50319071,0.00029555,8]
[356779685,1743167443686,-165.71019586,0.00029556,10]
[356779686,1743167443696,-160.0,0.00029557,3]
[356779687,1743167443705,-1813.36993698,0.00029557,3]
[356779688,1743167443716,-160.0,0.00029557,3]
[356779689,1743167443725,-418.56810427,0.00029557,3]
[356779690,1743167443735,-151.0,0.00029557,7]
[356779691,1743167443744,-160.791104,0.00029557,7]
[356779692,1743167443755,-160.791104,0.00029557,7]
[356779693,1743167443765,-151.0,0.00029557,7]
[356779694,1743167443775,-151.0,0.00029557,7]
[356779695,1743167443785,-151.0,0.00029557,7]
[356779696,1743167443794,-212.42328,0.00029557,7]
[356779697,1743167443804,-212.42328,0.00029557,7]
[356779698,1743167443813,-151.0,0.00029557,7]
[356779699,1743167443823,-271.309252,0.00029557,7]
[356779700,1743167443832,-160.0,0.00029557,7]
[356779701,1743167443843,-198.522448,0.00029557,7]
[356779702,1743167443853,-151.0,0.00029557,7]
[356779703,1743167443862,-418.56810427,0.00029557,7]
[356779704,1743167443872,-151.0,0.00029557,7]
[356779705,1743167443882,-151.0,0.00029557,7]
[356779706,1743167443892,-151.0,0.00029557,7]
[356779707,1743167443902,-151.0,0.00029557,7]
[356779708,1743167443912,-151.0,0.00029557,7]
[356779709,1743167443921,-2884.528793,0.00029557,7]
[356779710,1743167443931,-2884.528793,0.00029557,7]
[356779711,1743167443941,-151.0,0.00029557,7]
[356779712,1743167443951,-322000.0,0.00029557,2]
[356779713,1743167443960,-338.42789721,0.00029581,7]
[356779714,1743167443969,-205.809,0.00029585,2]
[356779715,1743167443979,-542.0,0.00029585,2]
[356779716,1743167443989,-2263.0,0.00029585,2]
[356779717,1743167443999,-1915.0,0.00029585,2]
[356779718,1743167444010,-1422.87315502,0.00029597,2]
[356779719,1743167444020,-1000.0,0.000296,2]
[356779720,1743167444030,-151.0,0.00029669,2]
[356779721,1743167444039,-151.0,0.0002968,7]
[356779722,1743167444049,-151.0,0.0002968,7]
[356779723,1743167444058,-183.188752,0.0002968,7]
[356779724,1743167444068,-183.188752,0.0002968,7]
[356779725,1743167444078,-151.0,0.0002968,7]
[356779726,1743167444087,-673.50319071,0.00029797,8]
[356779727,1743167444098,-151.0,0.000299,10]
[356779728,1743167444107,-252.759,0.000299,24]
[356779729,1743167444116,-630.0,0.000299,2]
[356779730,1743167444130,-1764.15367028,0.00029937,2]
[356779731,1743167444139,-13503.1226574,0.0002998,2]
[356779732,1743167444150,-151.0,0.0002998,7]
[356779733,1743167444159,-151.0,0.0002998,7]
[356779734,1743167444169,-151.0,0.0002998,7]
[356779735,1743167444179,-6751.56132868,0.00029988,2]
[356779736,1743167444188,-100000.0,0.0002999,2]
[356779737,1743167444197,-151.0,0.0002999,7]
[356779738,1743167444207,-151.0,0.0002999,7]
[356779739,1743167444216,-151.0,0.0002999,7]
[356779740,1743167444226,-151.0,0.0002999,7]
[356779741,1743167444236,-151.0,0.0002999,7]
[356779742,1743167444246,-151.0,0.0002999,7]
[356779743,1743167444255,-183.188752,0.0002999,7]
[356779744,1743167444266,-183.188752,0.0002999,7]
[356779745,1743167444275,-151.0,0.0002999,7]
[356779746,1743167444285,-151.0,0.0002999,7]
[356779747,1743167444294,-160.791104,0.0002999,7]
[356779748,1743167444304,-160.791104,0.0002999,7]
[356779749,1743167444314,-169.894569,0.0002999,7]
[356779750,1743167444323,-151.0,0.0002999,7]
[356779751,1743167444333,-151.0,0.0002999,7]
[356779752,1743167444343,-151.0,0.0002999,7]
[356779753,1743167444353,-212.42328,0.0002999,7]
[356779754,1743167444363,-212.42328,0.0002999,7]
[356779755,1743167444373,-151.0,0.0002999,7]
[356779756,1743167444382,-151.0,0.0002999,7]
[356779757,1743167444392,-151.0,0.0002999,7]
[356779758,1743167444401,-178.625625,0.0002999,7]
[356779759,1743167444411,-151.0,0.0002999,7]
[356779760,1743167444421,-178.625625,0.0002999,7]
[356779761,1743167444431,-151.0,0.0002999,7]
[356779762,1743167444441,-392.46283,0.0002999,7]
[356779763,1743167444450,-392.46283,0.0002999,7]
[356779764,1743167444460,-151.0,0.0002999,7]
[356779765,1743167444469,-6751.56132868,0.0002999,2]
[356779766,1743167444480,-154.455678,0.0002999,7]
[356779767,1743167444492,-175.219191,0.0002999,7]
[356779768,1743167444502,-175.219191,0.0002999,7]
[356779769,1743167444512,-151.0,0.0002999,7]
[356779770,1743167444521,-151.0,0.0002999,7]
[356779771,1743167444531,-151.0,0.0002999,7]
[356779772,1743167444540,-151.0,0.0002999,7]
[356779773,1743167444550,-151.0,0.0002999,7]
[356779774,1743167444561,-151.0,0.0002999,7]
[356779775,1743167444571,-151.0,0.0002999,7]
[356779776,1743167444581,-2884.528793,0.0002999,7]
[356779777,1743167444591,-2884.528793,0.0002999,7]
[356779778,1743167444600,-2042.935426,0.0002999,7]
[356779779,1743167444610,-2042.935426,0.0002999,7]
[356779780,1743167444619,-151.0,0.0002999,7]
[356779781,1743167444629,-36187.62995241,0.00029998,5]
[356779782,1743167444638,-151.0,0.00029998,7]
[356779783,1743167444648,-160.791104,0.00029998,7]
[356779784,1743167444657,-160.791104,0.00029998,7]
[356779785,1743167444667,-169.894569,0.00029998,7]
[356779786,1743167444677,-151.0,0.00029998,7]
[356779787,1743167444687,-151.0,0.00029998,7]
[356779788,1743167444696,-161.668083,0.00029998,7]
[356779789,1743167444707,-212.42328,0.00029998,7]
[356779790,1743167444716,-212.42328,0.00029998,7]
[356779791,1743167444726,-151.0,0.00029998,7]
[356779792,1743167444735,-151.0,0.00029998,7]
[356779793,1743167444746,-151.0,0.00029998,7]
[356779794,1743167444757,-178.625625,0.00029998,7]
[356779795,1743167444766,-151.0,0.00029998,7]
[356779796,1743167444776,-178.625625,0.00029998,7]
[356779797,1743167444786,-151.0,0.00029998,7]
[356779798,1743167444796,-392.46283,0.00029998,7]
[356779799,1743167444806,-392.46283,0.00029998,7]
[356779800,1743167444962,-151.0,0.00029998,7]
[356779801,1743167445010,-175.219191,0.00029998,7]
[356779802,1743167445020,-175.219191,0.00029998,7]
[356779803,1743167445030,-151.0,0.00029998,7]
[356779804,1743167445040,-174.957088,0.00029998,7]
[356779805,1743167445049,-151.0,0.00029998,7]
[356779806,1743167445059,-151.0,0.00029998,7]
[356779807,1743167445069,-151.0,0.00029998,7]
[356779808,1743167445079,-151.0,0.00029998,7]
[356779809,1743167445089,-151.0,0.00029998,7]
[356779810,1743167445099,-2884.528793,0.00029998,7]
[356779811,1743167445108,-2884.528793,0.00029998,7]
[356779812,1743167445118,-2042.935426,0.00029998,7]
[356779813,1743167445127,-2042.935426,0.00029998,7]
[356779814,1743167445137,-151.0,0.00029998,7]
[356779815,1743167445146,-21590.71352506,0.0003,30]
[356779816,1743167445155,-613.09716784,0.0003,2]
[356779818,1743167445164,-151.0,0.0003,19]
[356779819,1743167445174,-151.0,0.0003,7]
[356779820,1743167445183,-183.188752,0.0003,7]
[356779821,1743167445192,-183.188752,0.0003,7]
[356779822,1743167445201,-151.0,0.0003,7]
[356779823,1743167445211,-418.56810427,0.0003,30]
[356779824,1743167445220,-212.6652,0.0003,2]
[356779825,1743167445231,-673.50319071,0.00030038,9]
[356779826,1743167445240,-359.3531643,0.0003012,4]
[356779827,1743167445250,-6751.56132868,0.00030126,2]
[356779828,1743167445259,-151.0,0.00030126,7]
[356779829,1743167445269,-151.0,0.00030126,7]
[356779830,1743167445278,-274.982202,0.00030126,7]
[356779832,1743167445288,-151.0,0.00030126,7]
[356779833,1743167445297,-151.0,0.00030126,7]
[356779834,1743167445307,-183.188752,0.00030126,7]
[356779835,1743167445316,-183.188752,0.00030126,7]
[356779836,1743167445326,-151.0,0.00030126,7]
[356779838,1743167445335,-159.423077,0.00030126,7]
[356779839,1743167445344,-160.791104,0.00030126,7]
[356779840,1743167445356,-160.791104,0.00030126,7]
[356779841,1743167445367,-169.894569,0.00030126,7]
[356779842,1743167445377,-151.0,0.00030126,7]
[356779843,1743167445386,-151.0,0.00030126,7]
[356779844,1743167445396,-212.42328,0.00030126,7]
[356779845,1743167445405,-212.42328,0.00030126,7]
[356779846,1743167445415,-151.0,0.00030126,7]
[356779847,1743167445424,-151.0,0.00030126,7]
[356779848,1743167445434,-178.625625,0.00030126,7]
[356779849,1743167445443,-151.0,0.00030126,7]
[356779850,1743167445453,-178.625625,0.00030126,7]
[356779851,1743167445462,-151.0,0.00030126,7]
[356779852,1743167445472,-392.46283,0.00030126,7]
[356779853,1743167445481,-392.46283,0.00030126,7]
[356779854,1743167445493,-151.0,0.00030126,7]
[356779855,1743167445505,-175.219191,0.00030126,7]
[356779856,1743167445516,-175.219191,0.00030126,7]
[356779857,1743167445526,-151.0,0.00030126,7]
[356779858,1743167445536,-151.0,0.00030126,7]
[356779859,1743167445545,-151.0,0.00030126,7]
[356779860,1743167445555,-151.0,0.00030126,7]
[356779862,1743167445566,-151.0,0.00030126,7]
[356779864,1743167445576,-228.127395,0.00030126,7]
[356779865,1743167445585,-2884.528793,0.00030126,7]
[356779866,1743167445595,-2884.528793,0.00030126,7]
[356779867,1743167445604,-2042.935426,0.00030126,7]
[356779868,1743167445614,-2042.935426,0.00030126,7]
[356779869,1743167445624,-151.0,0.00030126,7]
[356779870,1743167445633,-10610.9559832,0.00030136,3]
[356779872,1743167446050,-1000.0,0.000286,2]
[356779873,1743167446060,-106.106,0.000291,2]
[356779874,1743167446071,-524.97824272,0.000291,2]
[356779875,1743167446094,-368.91575728,0.000291,2]
[356779876,1743167446104,-1454.35718403,0.00030136,3]
[356779877,1743167446113,-500.0,0.00030136,10]
[356779878,1743167446128,-500.0,0.00030136,10]
[356779879,1743167446138,-500.0,0.00030136,10]
[356779880,1743167446147,-500.0,0.00030136,10]
[356779881,1743167446157,-270.38058058,0.00030136,10]
[356779882,1743167446166,-500.0,0.00030136,10]
[356779883,1743167446176,-500.0,0.00030136,10]
[356779884,1743167446185,-500.0,0.00030136,10]
[356779885,1743167446195,-500.0,0.00030136,10]
[356779886,1743167446204,-500.0,0.00030136,10]
[356779887,1743167446214,-500.0,0.00030136,10]
[356779888,1743167446223,-500.0,0.00030136,10]
[356779889,1743167446232,-500.0,0.00030136,10]
[356779890,1743167446242,-500.0,0.00030136,10]
[356779891,1743167446252,-500.0,0.00030136,10]
[356779892,1743167446261,-500.0,0.00030136,10]
[356779893,1743167446271,-500.0,0.00030136,10]
[356779895,1743167446281,-500.0,0.00030136,10]
[356779896,1743167446290,-500.0,0.00030136,10]
[356779897,1743167446300,-500.0,0.00030136,10]
[356779898,1743167446310,-500.0,0.00030136,10]
[356779899,1743167446320,-500.0,0.00030136,10]
[356779900,1743167446330,-500.0,0.00030136,10]
[356779902,1743167446340,-500.0,0.00030136,10]
[356779903,1743167446350,-500.0,0.00030136,10]
[356779904,1743167446359,-500.0,0.00030136,10]
[356779905,1743167446369,-531.65604876,0.00030136,10]
[356779906,1743167446378,-500.0,0.00030136,10]
[356779907,1743167446391,-500.0,0.00030136,10]
[356779908,1743167446409,-500.0,0.00030136,10]
[356779909,1743167446426,-500.0,0.00030136,10]
[356779910,1743167446436,-500.0,0.00030136,10]
[356779911,1743167446446,-500.0,0.00030136,10]
[356779912,1743167446455,-500.0,0.00030136,10]
[356779913,1743167446465,-500.0,0.00030136,10]
[356779914,1743167446475,-500.0,0.00030136,10]
[356779915,1743167446484,-500.0,0.00030136,10]
[356779916,1743167446497,-500.0,0.00030136,10]
[356779917,1743167446507,-500.0,0.00030136,10]
[356779918,1743167446517,-500.0,0.00030136,10]
[356779919,1743167446526,-500.0,0.00030136,10]
[356779920,1743167446537,-500.0,0.00030136,10]
[356779921,1743167446546,-410.54695918,0.00030136,10]
[356779922,1743167446555,-500.0,0.00030136,10]
[356779923,1743167446567,-500.0,0.00030136,10]
[356779924,1743167446577,-500.0,0.00030136,10]
[356779925,1743167446586,-500.0,0.00030136,10]
[356779926,1743167446595,-500.0,0.00030136,10]
[356779927,1743167446606,-604.13,0.00030136,10]
[356779928,1743167446615,-500.0,0.00030136,10]
[356779929,1743167446624,-500.0,0.00030136,10]
[356779930,1743167446634,-504.63,0.00030136,10]
[356779931,1743167446643,-500.0,0.00030136,10]
[356779932,1743167446653,-500.0,0.00030136,10]
[356779933,1743167446663,-2139.78,0.00030136,10]
[356779934,1743167446672,-500.0,0.00030136,10]
[356779935,1743167446682,-500.0,0.00030136,10]
[356779936,1743167446691,-500.0,0.00030136,10]
[356779937,1743167446701,-500.0,0.00030136,10]
[356779938,1743167446711,-500.0,0.00030136,10]
[356779939,1743167446721,-500.0,0.00030136,10]
[356779940,1743167446730,-500.0,0.00030136,10]
[356779941,1743167446739,-500.0,0.00030136,10]
[356779942,1743167446748,-500.0,0.00030136,10]
[356779943,1743167446758,-911.38,0.00030136,2]
[356779944,1743167446768,-500.0,0.00030136,10]
[356779945,1743167446778,-500.0,0.00030136,10]
[356779946,1743167446787,-143.04907008,0.00030136,10]
[356779947,1743167446805,-356.95092992,0.00030136,10]
[356779948,1743167446818,-500.0,0.00030136,10]
[356779949,1743167446828,-500.0,0.00030136,10]
[356779950,1743167446838,-391.35007773,0.00030136,10]
[356779951,1743167446847,-500.0,0.00030136,10]
[356779952,1743167446856,-500.0,0.00030136,10]
[356779953,1743167446866,-500.0,0.00030136,10]
[356779954,1743167446875,-500.0,0.00030136,10]
[356779955,1743167446885,-617.39,0.00030136,10]
[356779956,1743167446895,-500.0,0.00030136,10]
[356779957,1743167446904,-500.0,0.00030136,10]
[356779958,1743167446915,-500.0,0.00030136,10]
[356779959,1743167446924,-500.0,0.00030136,10]
[356779960,1743167446934,-540.46300127,0.00030136,10]
[356779961,1743167446943,-500.0,0.00030136,10]
[356779962,1743167446952,-500.0,0.00030136,10]
[356779963,1743167446962,-500.0,0.00030136,7]
[356779964,1743167446971,-1754.15,0.00030136,10]
[356779965,1743167446981,-500.0,0.00030136,10]
[356779966,1743167446991,-151.0,0.00030136,7]
[356779967,1743167447002,-151.0,0.00030136,7]
[356779968,1743167447012,-151.0,0.00030136,7]
[356779969,1743167447021,-500.0,0.00030136,10]
[356779970,1743167447031,-500.0,0.00030136,10]
[356779971,1743167447041,-509.18798059,0.00030136,10]
[356779972,1743167447050,-500.0,0.00030136,10]
[356779973,1743167447059,-500.0,0.00030136,10]
[356779974,1743167447069,-500.0,0.00030136,10]
[356779975,1743167447078,-500.0,0.00030136,10]
[356779976,1743167447088,-515.36560458,0.00030136,10]
[356779977,1743167447097,-500.0,0.00030136,10]
[356779978,1743167447107,-147.49206986,0.00030136,10]
[356779979,1743167471936,-167.60647244,0.00026973,2]
[356779993,1743168479565,-383.91831167,0.00016,2]
[356779994,1743168484051,-216.31183923,0.0001584,3]
[356780004,1743168523025,-383.91831167,0.00015,4]
[356780006,1743168524713,-197.77749431,0.000149,2]
[356780009,1743168530678,-211.24657045,0.000149,2]
[356780015,1743168543426,-152.93349173,0.000149,2]
[356780016,1743168551131,-9.2507092,0.000149,2]
[356780017,1743168551153,-300.0,0.00014999,2]
[356780018,1743168551174,-22743.6031456,0.00015,4]
[356780019,1743168558348,-150.39660977,0.00015,4]
[356780023,1743168566127,-7418.26923327,0.00015,4]
[356780024,1743168566148,-8746.65917493,0.0001525,2]
[356780025,1743168567083,-300.0,0.0001525,2]
[356780026,1743168570096,-14464.64636425,0.0001525,2]
[356780027,1743168570885,-151.0,0.0001525,2]
[356780028,1743168571086,-6374.04507822,0.0001525,2]
[356780029,1743168571108,-709.35327968,0.000155,2]
[356780030,1743168571129,-208.06142711,0.0001584,3]
[356780031,1743168571150,-7255.57655239,0.00016,2]
[356780032,1743168577212,-290.45495467,0.0001584,2]
[356780057,1743168632064,-93.463357,0.0001584,2]
[356780058,1743168632074,-1741.38405739,0.00016,2]
[356780059,1743168632087,-494.77950843,0.0002479,2]
[356780060,1743168632097,-1027.198465,0.00025222,2]
[356780061,1743168632106,-358.149567,0.00025504,2]
[356780062,1743168632118,-332.0889685,0.00025871,2]
[356780063,1743168632128,-1918.3320052,0.00026149,2]
[356780064,1743168632137,-300.0,0.00026864,2]
[356780065,1743168632147,-4196.26406444,0.00026867,2]
[356780066,1743168632156,-164.88918196,0.00026867,2]
[356780067,1743168632165,-556.90627365,0.000269,7]
[356780068,1743168632175,-50000.0,0.000269,2]
[356780069,1743168632184,-164.32,0.00026945,3]